Cogmind - Beta 14 @@@ ROGUE MODE // 2024.09.21 @ 21:37:56 Player: youngster Result: Destroyed by G-50 Soldier with Heavy Laser Performance ------------- Evolutions (4) 2000 Regions Visited (20) 4000 Robots Destroyed (279) 1395 Value Destroyed (10534) 10534 Prototype IDs (248) 4960 Alien Tech Used (0) 0 Bonus (4577) 4577 TOTAL SCORE: 27466 Bonus ------- High Alert Combat Kills 861 Follower Combat Kills 865 Entered Garrisons 400 Used RIF Installer 1500 Aligned with FarCom 300 Met Data Miner 300 Used Data Conduit 3000 Friendly Fire -2649 Cogmind --------- Core Integrity 0/850 Matter 300/300 Energy 99/100 System Corruption 5% Temperature Cool (18) Movement Core (50) Location -5/Proximity Caves Parts ------- > --- POWER (1) -------- (None) > --- PROPULSION (4) --- (None) > --- UTILITY (7) ------ Enhanced Optical Array > --- WEAPON (3) ------- (None) > --- INVENTORY (5) ---- Seismic Detector Deep Network Scanner Peak State ------------ > --- POWER ------------ Reinforced Deuterium Engine > --- PROPULSION ------- Heavy Treads Centrium Wheel Centrium Wheel > --- UTILITY ---------- Experimental Heat Sink Cargo Storage Unit Enhanced Optical Array Layered Medium Armor Plating Graphene Brace Long-range Tractor Beam > --- WEAPON ----------- Coil Gun Coil Gun 8R-AWN's Boregun > --- INVENTORY -------- Reinforced Deuterium Engine Heavy Treads Heavy Siege Treads Advanced Energy Well Matter Compressor Seismic Detector 0b10 Alert Chip Damper Plating Deep Network Scanner Quantum Router Authchip [R/NC] Relay Coupler [NC] Long-range Proton Cannon Neutron Cannon XL Autogun Array Remote Datajack Improved Plasma Cutter Greatsword Enhanced Force Lance [Rating: 99] Favorites ----------- Power Reinforced Deuterium Engine Engine Reinforced Deuterium Engine Propulsion Light Treads Treads Light Treads Wheel Armored Wheel Utility Huge Storage Unit Device Seismic Detector Storage Huge Storage Unit Processor Advanced Targeting Computer Protection Hardened Light Armor Plating Weapon Flak Cannon Energy Gun AWS/Thermal Energy Cannon Neutron Cannon Ballistic Gun Coil Gun Ballistic Cannon Flak Cannon Launcher Advanced EMP Blaster Special Weapon Mining Laser Impact Weapon Heavy Hammer Slashing Weapon Falx Piercing Weapon Enhanced Force Lance Special Melee Weapon Datajack Build | -11 -10 -10 -9 -9 -9 -8 -8 -8 -8 -8 -7 -7 -7 -6 -6 -6 -6 -6 -6 -5 ------- Run | Yrd Mat Min Mat Min Exi Min Mat Gar Mat Gar Fac Low Low Fac Was Fac Low Low Dat Pro Slots Evolved 8 | . . . 2 . . . 2 . . . 2 . . 2 . . . . . . Power . | . . . . . . . . . . . . . . . . . . . . . Propulsion 2 | . . . . . . . 1 . . . 1 . . . . . . . . . Utility 5 | . . . 2 . . . . . . . 1 . . 2 . . . . . . Weapon 1 | . . . . . . . 1 . . . . . . . . . . . . . Parts Attached 399 | 7 24 17 49 8 13 11 48 17 4 31 21 11 1 61 15 8 7 16 12 18 Power 12 | 1 2 1 2 . 1 . 2 . . 1 1 . . . . . . . 1 . Engine 12 | 1 2 1 2 . 1 . 2 . . 1 1 . . . . . . . 1 . Core . | . . . . . . . . . . . . . . . . . . . . . Reactor . | . . . . . . . . . . . . . . . . . . . . . Propulsion 66 | 2 5 . 18 1 3 3 9 4 2 1 4 1 . 7 3 . . . 1 2 Treads 43 | 2 3 . 11 1 2 2 7 2 2 1 2 1 . 1 3 . . . 1 2 Leg . | . . . . . . . . . . . . . . . . . . . . . Wheel 23 | . 2 . 7 . 1 1 2 2 . . 2 . . 6 . . . . . . Hover . | . . . . . . . . . . . . . . . . . . . . . Flight . | . . . . . . . . . . . . . . . . . . . . . Utility 149 | 2 12 7 14 3 2 4 13 4 . 10 7 7 1 32 5 3 2 9 4 8 Device 100 | 1 6 4 4 2 1 2 9 2 . 8 6 6 1 22 3 2 1 9 3 8 Storage 6 | 1 2 . . . . . . . . . . . . 3 . . . . . . Processor 4 | . . . 1 . . . . . . . . . . 1 . 1 1 . . . Hackware . | . . . . . . . . . . . . . . . . . . . . . Protection 39 | . 4 3 9 1 1 2 4 2 . 2 1 1 . 6 2 . . . 1 . Artifact . | . . . . . . . . . . . . . . . . . . . . . Weapon 172 | 2 5 9 15 4 7 4 24 9 2 19 9 3 . 22 7 5 5 7 6 8 Energy Gun 1 | . . . . . . . . 1 . . . . . . . . . . . . Energy Cannon 8 | . . . . . 1 . . . . . . 1 . 1 . . . 1 1 3 Ballistic Gun 74 | 2 3 4 10 1 5 2 9 . . 8 4 . . 10 3 3 2 3 3 2 Ballistic Cannon 18 | . . . . . . . 10 4 1 3 . . . . . . . . . . Launcher 23 | . 2 4 3 2 1 2 1 . . . 1 1 . 1 . 2 2 . 1 . Special Weapon 4 | . . 1 . . . . . . . . . . . 1 . . . 1 . 1 Impact Weapon 13 | . . . 2 . . . 4 4 1 2 . . . . . . . . . . Slashing Weapon 21 | . . . . . . . . . . 4 3 1 . 9 3 . . 1 . . Piercing Weapon 6 | . . . . . . . . . . . . . . . 1 . 1 1 1 2 Special Melee Weapon 4 | . . . . 1 . . . . . 2 1 . . . . . . . . . Unidentified Prototypes 3 | . . . 1 . . . 1 . . . . . . . 1 . . . . . Corrupted Parts 1 | . . . . . . . . . . . . . . . . . . . . 1 System Corruption 2 | . . . . . . . . . . . . . . . . . . . . 2 Parts Lost 49 | . 3 1 3 . 5 2 3 2 . 4 . 1 . 8 . 2 1 . 3 11 Power 4 | . 1 1 . . 1 . . . . 1 . . . . . . . . . . Propulsion 16 | . 1 . . . 1 1 1 . . 1 . 1 . 5 . . . . . 5 Utility 17 | . . . 3 . 1 1 . 2 . 2 . . . 2 . 1 1 . 2 2 Weapon 12 | . 1 . . . 2 . 2 . . . . . . 1 . 1 . . 1 4 Highest Loss Streak 9 | . 2 1 2 . 5 2 2 1 . 3 . 1 . 3 . 2 1 . 3 9 To Critical Strikes 4 | . . . . . 4 . . . . . . . . . . . . . . . Average Slot Usage (%) 94 | . 99 99 98 100 100 100 99 95 90 97 98 92 92 88 77 86 84 85 80 82 Engine 9 | . 13 13 11 11 11 11 9 9 9 9 7 7 7 6 6 6 6 6 6 5 Treads 15 | . 22 14 11 11 12 11 24 23 18 23 23 23 23 11 5 6 6 6 6 5 Wheel 8 | . 5 14 10 11 9 10 2 3 9 3 5 7 7 10 15 13 13 13 13 12 Device 12 | . 9 8 7 10 10 9 7 9 9 9 15 15 15 20 11 23 24 25 21 20 Storage 9 | . 14 14 11 11 11 11 9 9 9 9 7 7 7 6 6 6 6 6 6 5 Processor 4 | . . . 2 11 11 11 9 7 . . . . . 5 6 6 6 6 6 6 Protection 9 | . 4 5 21 11 11 12 10 10 18 17 14 7 7 5 3 2 . . 2 4 Ballistic Gun 12 | . 27 15 18 11 17 12 3 . . 11 15 2 . 11 7 9 16 19 10 14 Ballistic Cannon 3 | . . . . . . . 22 15 4 8 1 . . . . . . . . . Launcher 2 | . . 6 1 9 . 9 . . . . . 13 15 . . . . . . . Slashing Weapon 1 | . . . . . . . . . . 1 5 5 7 8 11 2 . . 3 . Peak Build Rating 99 | 7 9 10 22 22 29 29 47 57 56 57 70 66 60 80 97 91 88 90 91 99 Average Rating 43 | 5 8 9 18 20 23 28 36 50 55 52 61 60 60 71 91 89 85 84 85 89 On Entrance 48 | . 7 9 9 21 20 29 28 39 54 55 53 62 64 60 80 91 88 80 82 91 Naked Turns . | . . . . . . . . . . . . . . . . . . . . . Heaviest Build 215 | 14 94 94 112 102 108 108 117 116 116 121 127 128 127 183 215 185 180 181 180 184 Greatest Support 82 | 40 40 16 40 12 12 12 60 60 12 62 82 12 12 48 70 32 32 32 32 32 Greatest Overweight (x) 11 | . 5 5 9 8 8 8 9 9 9 10 10 10 10 11 6 5 5 5 5 5 Average Overweight (x) 5 | . 2 5 7 8 8 8 3 4 9 3 8 9 10 7 4 5 5 5 5 4 Largest Inventory Capacity 30 | 8 25 25 25 25 25 25 25 25 25 25 25 25 25 30 30 30 30 30 30 30 Average Capacity 25 | 7 17 25 25 25 25 25 25 25 25 25 25 25 25 26 30 30 30 30 30 29 Most Carried 30 | 5 14 16 25 25 25 25 25 25 25 25 25 25 25 30 30 30 30 30 30 30 Average Carried 23 | 2 11 14 23 24 23 24 24 24 24 22 24 24 25 25 29 29 30 29 28 28 Final Capacity 30 | 8 25 25 25 25 25 25 25 25 25 25 25 25 25 30 30 30 30 30 30 5 Final Carried 30 | 5 13 15 25 25 25 24 25 24 25 25 25 25 25 30 30 30 30 30 30 2 Class Distribution -------------------- 41% | Mutant 17% | Scavenger-Mutant 9% | Scavenger-Gunner 7% | Hauler-Mutant 7% | Hauler-Tank 5% | Tank 3% | Scavenger-Tank 3% | Gunner Dominant Class ---------------- Mutant | -10/Materials Mutant | -10/Mines Mutant | -9/Materials Mutant | -9/Mines Mutant | -9/Exiles Mutant | -8/Mines Scavenger-Gunner | -8/Materials Scavenger-Gunner | -8/Garrison Mutant | -8/Materials Tank | -8/Garrison Scavenger-Mutant | -7/Factory Scavenger-Mutant | -7/Lower Caves Scavenger-Mutant | -7/Lower Caves Scavenger-Mutant | -6/Factory Hauler-Mutant | -6/Waste Hauler-Mutant | -6/Factory Hauler-Mutant | -6/Lower Caves Hauler-Tank | -6/Lower Caves Hauler-Tank | -6/Data Miner Hauler-Tank | -5/Proximity Caves Resources | -11 -10 -10 -9 -9 -9 -8 -8 -8 -8 -8 -7 -7 -7 -6 -6 -6 -6 -6 -6 -5 ----------- Run | Yrd Mat Min Mat Min Exi Min Mat Gar Mat Gar Fac Low Low Fac Was Fac Low Low Dat Pro Matter Collected 10694 | 296 751 266 1136 124 454 162 1347 1017 50 1018 379 224 . 1808 201 122 167 462 191 519 Remotely 782 | . . . . . . . 122 . . 24 86 . . 92 . . . 270 . 188 Salvage Created 12178 | 193 747 374 1719 152 111 117 1464 551 108 1185 351 532 . 2160 470 292 292 399 426 535 Parts 607 | 18 47 20 95 11 4 4 78 28 7 66 28 19 . 92 10 8 21 13 20 18 Haulers Intercepted 14 | . 2 . 5 . . . 6 . . . . . . 1 . . . . . . Recyclers Shooed 7 | . . . 3 . . . 1 . . . 1 . . 2 . . . . . . Parts Field Recycled . | . . . . . . . . . . . . . . . . . . . . . Retrieved Matter . | . . . . . . . . . . . . . . . . . . . . . Parts Self-Destructed 50 | . . . . . . . . . . . . 6 . . . . 14 15 . 15 Prevented 24 | . . . . . . . . . . . . 13 . . . . 3 3 . 5 Kills | -11 -10 -10 -9 -9 -9 -8 -8 -8 -8 -8 -7 -7 -7 -6 -6 -6 -6 -6 -6 -5 ------- Run | Yrd Mat Min Mat Min Exi Min Mat Gar Mat Gar Fac Low Low Fac Was Fac Low Low Dat Pro Combat Hostiles Destroyed 200 | . 15 11 28 6 1 3 23 21 1 28 5 10 . 23 1 1 6 6 4 7 Melee 20 | . . . 2 . . . 1 . . . 1 1 . 15 . . . . . . Guns 106 | . 13 6 23 1 1 1 7 4 1 19 4 . . 8 1 . 5 6 1 5 Cannons 41 | . . . . . . . 15 17 . 9 . . . . . . . . . . AOE 26 | . 2 5 2 5 . 2 . . . . . 6 . . . 1 1 . 1 1 Classes Destroyed 20 | 2 5 1 4 . . . 2 . . 3 1 . . 1 1 . . . . . Worker 18 | . 3 . 6 . . . 3 . . . 1 . . 3 . 2 . . . . Builder 6 | . 2 . 2 . . . . . . . 1 . . 1 . . . . . . Tunneler 6 | 5 . . . 1 . . . . . . . . . . . . . . . . Hauler 14 | . 2 . 5 . . . 6 . . . . . . 1 . . . . . . Recycler 13 | 1 . . 4 . . . 4 . . . . . . 4 . . . . . . Operator 3 | . . . 1 . . . 1 . . . . . . 1 . . . . . . Watcher 10 | . 1 . 1 . . . 4 . 2 . . . . 2 . . . . . . Swarmer 37 | . . 3 8 3 . . 3 6 . 6 . 3 . . . . 4 1 . . Grunt 91 | . 15 8 8 3 . 3 10 10 . 5 . 6 . 13 . 1 2 3 . 4 Brawler 3 | . . . 1 . . . 1 1 . . . . . . . . . . . . Duelist 4 | . . . 1 . . . . . . 2 . 1 . . . . . . . . Protector 1 | . . . . . . . . . . 1 . . . . . . . . . . Sentry 30 | . . . 10 . . . 6 3 1 7 . . . . . . . 2 . 1 Demolisher 1 | . . . . . . . . . . 1 . . . . . . . . . . Specialist 2 | . . . . . . . . . . . 2 . . . . . . . . . Hunter 6 | . . . . . . . 2 1 . . 1 . . 1 . . . . . 1 Programmer 15 | . . . . . . . . . . 6 1 . . 8 . . . . . . Heavy 2 | . . . . . . . 1 . . . 1 . . . . . . . . . Behemoth 2 | . . . . . . . . . . . . . . 1 . . . . . 1 Compactor 1 | . . . . . . . . . . . . . . . 1 . . . . . Enhanced Grunt 4 | . . . . . . . . . . . . . . . . . . . 4 . Decomposer 6 | . . . . . . . . . . . . . . . . . 3 3 . . Packrat 1 | . . . . . . . . . . . . 1 . . . . . . . . Wasp 2 | . . . . . . . . . . . . . . . . 2 . . . . Thug 3 | . . . . . . . . . . . . . . . . 3 . . . . Martyr 3 | . . . . . . . . . . . . . . . 3 . . . . . Best Kill Streak 9 | 5 9 3 4 6 1 3 6 4 1 8 5 4 . 6 1 3 4 2 5 3 Combat Bots Only 8 | . 6 3 3 6 1 3 4 4 1 8 3 4 . 3 1 1 4 2 4 3 Max Kills in Single Turn 3 | 2 2 1 3 3 1 1 2 2 1 2 1 2 . 2 1 3 2 1 2 1 Gunslinging 1 | . . . . . . . . . . . . . . . . . 1 . . . Exploded 3 | . 1 1 2 3 . 1 . . . . . 2 . . . 1 1 . 1 1 Melee 1 | . . . 1 . . . 1 . . . 1 1 . 1 . . . . . . Uniques/NPCs Destroyed 2 | . . . . . 1 . . . . . . . . . . . . . 1 . 8R-AWN (-9/Exiles) Data Miner (-6/Data Miner) Combat | -11 -10 -10 -9 -9 -9 -8 -8 -8 -8 -8 -7 -7 -7 -6 -6 -6 -6 -6 -6 -5 -------- Run | Yrd Mat Min Mat Min Exi Min Mat Gar Mat Gar Fac Low Low Fac Was Fac Low Low Dat Pro Hostile Shots Fired 1218 | . 92 29 183 3 81 22 108 74 . 135 47 16 . 156 . 24 26 42 16 164 Missed 300 | . 25 12 42 1 16 4 33 23 . 27 10 5 . 34 . 11 10 8 5 34 Damage Taken 14700 | . 838 253 1301 16 903 345 1312 672 . 1513 612 194 . 2463 . 494 225 369 509 2681 Core 1777 | . 129 49 169 . 73 92 111 67 . 132 97 . . 169 . 20 30 24 . 615 Absorbed by Shields 1039 | . . . 455 . 243 . . 51 . 13 36 . . 108 . 13 26 94 . . Reduced by Siege Mode 382 | . . . . . . . . . . . . . . . . . . 35 57 290 Regen/Repaired (Parts) 1103 | . 112 . 428 . . . 152 . . . . . . 147 260 . 4 . . . Core Remaining (%) 54 | 100 . 28 . . . 16 . . . 43 . . 86 . . . . . . . Volleys Fired 684 | 17 86 31 143 5 40 9 76 27 . 55 16 8 . 66 5 8 7 25 11 49 Largest 3 | 2 2 2 2 2 2 2 3 3 . 3 3 2 . 3 1 2 3 3 3 3 Hottest 150 | 40 40 100 60 46 79 46 132 132 . 107 91 72 . 93 30 60 90 90 90 150 Shots Fired 1578 | 34 164 51 284 6 80 15 217 76 13 178 48 13 . 180 5 12 17 71 15 99 Gun 1276 | 34 160 41 280 4 75 13 120 9 13 123 48 . . 178 5 8 15 70 6 74 Cannon 248 | . . . . . 5 . 96 67 . 55 . . . . . . . 1 1 23 Launcher 45 | . 4 5 4 2 . 2 1 . . . . 13 . 1 . 4 2 . 7 . Special 9 | . . 5 . . . . . . . . . . . 1 . . . . 1 2 Kinetic 1417 | 34 160 41 280 4 75 13 216 67 . 123 48 . . 178 5 8 15 70 6 74 Thermal 102 | . . 5 . . . . . 9 13 55 . . . . . . . . . 20 Explosive 17 | . 4 5 4 2 . 2 . . . . . . . . . . . . . . Electromagnetic 38 | . . . . . 5 . 1 . . . . 13 . 1 . 4 2 1 8 3 Robot Hit Streak 35 | 5 15 7 27 7 26 10 13 7 7 15 5 5 . 14 2 6 10 23 18 35 Robot Miss Streak 12 | 4 3 2 3 . 2 1 12 6 3 11 3 . . 3 2 4 1 2 . 3 Penetration Max 1 | . . . . . . . . . . 1 1 . . 1 . . . . . 1 Secondary Targets 12 | . 2 . 1 . . . 2 . . 1 2 . . . . . 2 1 . 1 Max Gunslinging Chain 1 | . 1 . 1 . . . 1 . . 1 1 . . . . . 1 1 . 1 Autonomous 78 | . . . . . . . . 9 13 56 . . . . . . . . . . Shots Hit Robots 1212 | 20 114 29 204 4 74 12 156 64 9 148 36 5 . 165 12 7 13 51 9 80 Core Hits 632 | 8 53 24 72 9 15 8 121 76 3 70 12 12 . 63 5 17 10 17 19 18 Critical Kills 7 | . . . . . . . 1 . . . 1 . . 2 1 . . 1 . 1 Critical Parts Destroyed 20 | . . . 6 . . . 2 . . 3 2 . . 3 . . . . . 4 Critical Strikes 46 | . . . 6 . 2 . 3 . . 9 3 . . 13 3 . 1 1 . 5 Destroy 27 | . . . 3 . 2 . 2 . . 3 3 . . 6 2 . . 1 . 5 Smash 4 | . . . 3 . . . 1 . . . . . . . . . . . . . Sever 14 | . . . . . . . . . . 6 . . . 7 1 . . . . . Impale 1 | . . . . . . . . . . . . . . . . . 1 . . . Melee Attacks 250 | . . . 18 . 4 . 15 20 2 41 14 3 . 105 10 9 4 1 1 3 Impact 57 | . . . 18 . . . 15 20 2 2 . . . . . . . . . . Slashing 161 | . . . . . . . . . . 25 12 3 . 105 10 5 . . 1 . Piercing 12 | . . . . . . . . . . . . . . . . 4 4 1 . 3 Sneak Attacks 49 | . . . 4 . 4 . 3 . . 14 3 1 . 7 8 1 3 . 1 . Combat Hostiles . | . . . . . . . . . . . . . . . . . . . . . Follow-up Attacks 17 | . . . . . . . . . . . . . . 17 . . . . . . Damage Inflicted 29894 | 233 1460 540 3369 341 1033 368 3075 1462 232 3833 923 885 . 5410 884 1376 502 1094 732 2142 Guns 15547 | 233 1118 238 2466 61 1028 167 1244 263 232 2246 653 . . 2766 57 98 168 1094 85 1330 Cannons 3935 | . . . . . 5 . 1340 1160 . 689 . . . . . . . . 23 718 Explosions 4068 | . 331 302 254 280 . 201 . . . . . 786 . 33 . 1213 80 . 503 85 Melee 6271 | . . . 642 . . . 491 . . 898 263 99 . 2611 827 65 254 . 121 . Ramming 73 | . 11 . 7 . . . . 39 . . 7 . . . . . . . . 9 Kinetic 16907 | 233 1118 238 2466 61 1028 167 2584 1160 . 1601 653 . . 2766 57 98 168 1094 85 1330 Thermal 2707 | . . . . . . . . 263 232 1334 . 76 . . . . . . 96 706 Explosive 2271 | . 331 302 254 280 . 201 . . . . . . . . . 903 . . . . Electromagnetic 1665 | . . . . . 5 . . . . . . 710 . 33 . 310 80 . 430 97 Impact 1133 | . . . 642 . . . 491 . . . . . . . . . . . . . Slashing 4819 | . . . . . . . . . . 898 263 99 . 2611 827 . . . 121 . Piercing 319 | . . . . . . . . . . . . . . . . 65 254 . . . Highest Corruption 10 | . . . . . . . . 5 5 10 . 1 1 3 3 3 3 3 3 5 Average Corruption 4 | . . . . . . . . 4 5 8 . 1 1 2 3 3 3 3 3 3 Corruption Purged . | . . . . . . . . . . . . . . . . . . . . . Corruption Blocked . | . . . . . . . . . . . . . . . . . . . . . Effects 158 | . . . . . . . . 10 4 57 . . 2 19 12 8 6 17 6 17 Message Errors 41 | . . . . . . . . 2 1 13 . . 1 8 5 2 . 5 1 3 Matter Fused 39 | . . . . . . . . 3 1 15 . . 1 3 3 1 3 5 . 4 Heat Flow Errors 18 | . . . . . . . . 1 . 3 . . . 1 . 1 . 3 3 6 Energy Discharges 16 | . . . . . . . . 1 . 5 . . . 2 1 1 2 1 2 1 Parts Fused 2 | . . . . . . . . . . 1 . . . . . 1 . . . . Data Loss (minor) 10 | . . . . . . . . 2 1 2 . . . . . 1 . 3 . 1 Data Loss (major) 7 | . . . . . . . . . . 1 . . . 2 3 . . . . 1 Misfires 12 | . . . . . . . . . . 10 . . . 1 . . 1 . . . Alerts 10 | . . . . . . . . 1 1 5 . . . 2 . 1 . . . . Weapon Failures 3 | . . . . . . . . . . 2 . . . . . . . . . 1 Overload Shots . | . . . . . . . . . . . . . . . . . . . . . Overflow Damage 1128 | . . . 244 . . . 208 . . 13 58 . . 232 169 135 . . 61 8 Projectiles 16 | . . . . . . . . . . 8 . . . . . . . . . 8 Explosions 120 | . . . 20 . . . . . . . . . . . . 100 . . . . Melee 992 | . . . 224 . . . 208 . . 5 58 . . 232 169 35 . . 61 . Knockbacks 61 | . . . 1 . . . 11 37 . 12 . . . . . . . . . . Impact 2 | . . . 1 . . . 1 . . . . . . . . . . . . . Kinetic 57 | . . . . . . . 10 36 . 11 . . . . . . . . . . Secondary 2 | . . . . . . . . 1 . 1 . . . . . . . . . . Self-Inflicted Damage 426 | . . 19 . . . 39 . 39 . . . 25 . . . 271 . . . 33 Shots 9 | . . 1 . . . 2 . . . . . 2 . . . 3 . . . 1 Rammed 9 | . 3 . 1 . . . . . . . 1 . . . . . . . . 4 Targets Rammed 9 | . 3 . 1 . . . . . . . 1 . . . . . . . . 4 Kicked . | . . . . . . . . . . . . . . . . . . . . . Crushed . | . . . . . . . . . . . . . . . . . . . . . Highest Temperature 432 | . 142 56 223 16 148 151 432 255 . 281 312 30 . 322 6 223 24 259 233 201 Average Temperature 74 | . 48 20 38 7 90 95 127 59 . 81 136 15 . 89 3 115 10 81 72 85 Received Heat Transfer 3617 | . 501 123 436 . . 180 423 285 . 231 56 90 . 569 . 18 6 117 . 582 Effects 9 | . . . . . . . 4 . . 3 . . . 2 . . . . . . Energy Bleed 5 | . . . . . . . 2 . . 1 . . . 2 . . . . . . Interference 3 | . . . . . . . 1 . . 2 . . . . . . . . . . Short Circuit 1 | . . . . . . . 1 . . . . . . . . . . . . . Siege Activations 11 | . . . . . . . . . . . . . . . . . 1 4 1 5 Total Turns 194 | . . . . . . . . . . . . . . . . . 4 51 27 112 Longest Duration 66 | . . . . . . . . . . . . . . . . . 4 18 27 66 Robots Corrupted 9 | . . . 2 . . . 1 . . . . 3 . . . . . . 2 1 Combat Hostiles 7 | . . . 1 . . . . . . . . 3 . . . . . . 2 1 Parts Fried 24 | . . . 5 . . . 5 . . . . 4 . . . . . . 10 . Impact Corruptions 10 | . . . 7 . . . 3 . . . . . . . . . . . . . Robots Melted . | . . . . . . . . . . . . . . . . . . . . . Combat Hostiles . | . . . . . . . . . . . . . . . . . . . . . Parts Melted 5 | . . . . . . . . 2 1 1 . . . . . 1 . . . . Heat Transferred 2488 | . . . . . . . . 333 296 1609 . 50 . . . . . . 100 100 Parts Sabotaged . | . . . . . . . . . . . . . . . . . . . . . Parts Stolen 1 | . . . . . . . . . . . . . . . . . . 1 . . Parts Stripped . | . . . . . . . . . . . . . . . . . . . . . Power Chain Reactions 4 | . . . . . . . . . . . . 2 . . . . . . 1 1 Alert | -11 -10 -10 -9 -9 -9 -8 -8 -8 -8 -8 -7 -7 -7 -6 -6 -6 -6 -6 -6 -5 ------- Run | Yrd Mat Min Mat Min Exi Min Mat Gar Mat Gar Fac Low Low Fac Was Fac Low Low Dat Pro Peak Influence 1607 | 30 238 225 588 407 . 64 310 784 483 1607 1091 . . 430 158 819 . . . . Initial 843 | . 19 32 87 223 . . . 40 382 313 843 . . 163 148 . . . . . Average 293 | 11 144 45 325 198 . 6 91 464 436 1060 966 . . 184 109 392 . . . . Maximum Alert Level 5 | . 1 1 2 2 . . 1 3 2 5 3 . . 2 . 3 . . . . Low Security (%) 54 | 100 74 98 29 40 . 100 92 10 . . . . . 58 100 29 . . . . Level 1 19 | . 25 1 35 31 . . 7 30 28 5 . . . 36 . 9 . . . . Level 2 14 | . . . 35 28 . . . 39 71 14 . . . 5 . 52 . . . . Level 3 6 | . . . . . . . . 20 . 26 100 . . . . 8 . . . . Level 4 4 | . . . . . . . . . . 49 . . . . . . . . . . Level 5 . | . . . . . . . . . . 4 . . . . . . . . . . High Security . | . . . . . . . . . . . . . . . . . . . . . Max Security . | . . . . . . . . . . . . . . . . . . . . . Squads Dispatched 31 | . 4 . 1 . . . 4 . . . 6 . . 12 . 3 . . . 1 Investigation 8 | . 1 . . . . . 1 . . . 1 . . 3 . 2 . . . . Extermination 6 | . . . . . . . . . . . 1 . . 5 . . . . . . Reinforcement 13 | . 3 . 1 . . . 3 . . . 2 . . 3 . 1 . . . . Assault 3 | . . . . . . . . . . . 2 . . . . . . . . 1 Garrison 1 | . . . . . . . . . . . . . . 1 . . . . . . Intercept . | . . . . . . . . . . . . . . . . . . . . . Searches Triggered . | . . . . . . . . . . . . . . . . . . . . . Construction Impeded . | . . . . . . . . . . . . . . . . . . . . . Haulers Reinforced 2 | . . . . . . . . . . . . . . 2 . . . . . . Active Scanning Responses . | . . . . . . . . . . . . . . . . . . . . . Cargo Convoy Interrupts . | . . . . . . . . . . . . . . . . . . . . . Stealth | -11 -10 -10 -9 -9 -9 -8 -8 -8 -8 -8 -7 -7 -7 -6 -6 -6 -6 -6 -6 -5 --------- Run | Yrd Mat Min Mat Min Exi Min Mat Gar Mat Gar Fac Low Low Fac Was Fac Low Low Dat Pro Distress Signals 8 | . 1 . 6 . . . 1 . . . . . . . . . . . . . Communications Jammed 48 | . . . . . . . . . 19 . 6 . . 3 . 20 . . . . Distress Signals 45 | . . . . . . . . . 19 . 3 . . 3 . 20 . . . . Times Spotted 328 | . 34 11 66 3 1 3 32 19 2 37 8 10 . 36 1 13 8 7 4 33 Peak Tracking Total 20 | . 4 3 7 4 3 3 5 3 1 7 5 4 . 3 1 4 4 2 4 20 Tactical Retreats 27 | . 1 1 14 . . . 3 . . 4 1 . . 1 . . . . . 2 Traps | -11 -10 -10 -9 -9 -9 -8 -8 -8 -8 -8 -7 -7 -7 -6 -6 -6 -6 -6 -6 -5 ------- Run | Yrd Mat Min Mat Min Exi Min Mat Gar Mat Gar Fac Low Low Fac Was Fac Low Low Dat Pro Traps Triggered 28 | . 1 . 1 . . . 4 10 . 8 . . . 2 . 2 . . . . Indirectly 4 | . . . . . . . 3 . . . . . . . . 1 . . . . Trap Hack Attempts . | . . . . . . . . . . . . . . . . . . . . . Triggered . | . . . . . . . . . . . . . . . . . . . . . Disarmed . | . . . . . . . . . . . . . . . . . . . . . Reprogrammed . | . . . . . . . . . . . . . . . . . . . . . Reused . | . . . . . . . . . . . . . . . . . . . . . Traps Extracted . | . . . . . . . . . . . . . . . . . . . . . Installed . | . . . . . . . . . . . . . . . . . . . . . Triggered 1 | . . . . . . . . . . . . . . . . . . 1 . . Machines | -11 -10 -10 -9 -9 -9 -8 -8 -8 -8 -8 -7 -7 -7 -6 -6 -6 -6 -6 -6 -5 ---------- Run | Yrd Mat Min Mat Min Exi Min Mat Gar Mat Gar Fac Low Low Fac Was Fac Low Low Dat Pro Machines Disabled 30 | . 1 1 1 1 1 . . 4 1 8 1 . . 5 . 5 . 1 . . Max in Single Turn 2 | . 1 1 1 1 1 . . 1 1 2 1 . . 2 . 2 . 1 . . Garrison Access 1 | . . . . . . . . . . . . . . . . 1 . . . . Garrison Relay 7 | . . . . . . . . 3 . 4 . . . . . . . . . . Machines Repaired . | . . . . . . . . . . . . . . . . . . . . . Machines Dismantled . | . . . . . . . . . . . . . . . . . . . . . Machines Sabotaged . | . . . . . . . . . . . . . . . . . . . . . Overloaded Fab Kills . | . . . . . . . . . . . . . . . . . . . . . Hacking | -11 -10 -10 -9 -9 -9 -8 -8 -8 -8 -8 -7 -7 -7 -6 -6 -6 -6 -6 -6 -5 --------- Run | Yrd Mat Min Mat Min Exi Min Mat Gar Mat Gar Fac Low Low Fac Was Fac Low Low Dat Pro Machines Accessed 68 | . 7 . 15 . 1 . 10 2 2 3 1 1 . 14 . 4 2 2 4 . Terminals 41 | . 6 . 11 . . . 8 2 . 3 . . . 8 . 1 1 1 . . Fabricators 8 | . . . . . . . . . . . 1 . . 5 . 2 . . . . Repair Stations 5 | . 1 . 2 . . . 1 . . . . . . 1 . . . . . . Recycling Units . | . . . . . . . . . . . . . . . . . . . . . Scanalyzers 3 | . . . 2 . . . . . 1 . . . . . . . . . . . Garrison Access 3 | . . . . . . . 1 . 1 . . . . . . 1 . . . . Total Hacks 181 | . 17 . 41 . 1 . 34 5 6 5 4 1 . 28 . 7 2 3 27 . Successful 125 | . 13 . 28 . 1 . 19 1 5 2 2 1 . 17 . 4 2 3 27 . Failed 55 | . 3 . 13 . . . 15 4 1 3 2 . . 11 . 3 . . . . Catastrophic 10 | . . . . . . . 2 1 . 1 . . . 5 . 1 . . . . Database Lockouts 1 | . 1 . . . . . . . . . . . . . . . . . . . Manual 84 | . 14 . 23 . 1 . 26 . . . 1 . . 16 . 3 . . . . Terminals 99 | . 15 . 26 . . . 28 5 . 5 . . . 15 . 2 1 2 . . Fabricators 19 | . . . . . . . . . . . 4 . . 11 . 4 . . . . Repair Stations 20 | . 2 . 11 . . . 5 . . . . . . 2 . . . . . . Recycling Units . | . . . . . . . . . . . . . . . . . . . . . Scanalyzers 9 | . . . 4 . . . . . 5 . . . . . . . . . . . Garrison Access 3 | . . . . . . . 1 . 1 . . . . . . 1 . . . . Terminal Hacks 50 | . 2 . 6 . 1 . 4 1 . 2 . 1 . 1 . . 2 3 27 . Record 14 | . . . . . . . . . . . . . . . . . 1 2 11 . Part Schematic 10 | . 1 . . . . . . . . . . . . . . . . . 9 . Robot Schematic 5 | . . . 1 . . . . . . . . . . . . . . . 4 . Robot Analysis 1 | . . . 1 . . . . . . . . . . . . . . . . . Prototype ID Bank 5 | . . . 1 . . . 1 . . . . . . . . . . . 3 . Open Door 4 | . . . . . . . . . . 1 . 1 . . . . 1 1 . . Branch Access Points 1 | . . . . . . . 1 . . . . . . . . . . . . . Emergency Access Points 1 | . . . . . . . . 1 . . . . . . . . . . . . Terminal Index 1 | . . . . . . . . . . . . . . 1 . . . . . . Unreport Threat 3 | . . . 2 . . . 1 . . . . . . . . . . . . . Locate Traps 3 | . 1 . 1 . . . 1 . . . . . . . . . . . . . Patrol Navigation 1 | . . . . . . . . . . 1 . . . . . . . . . . Derelict Proto ID Bank 1 | . . . . . 1 . . . . . . . . . . . . . . . Fabricator Hacks 9 | . . . . . . . . . . . 2 . . 5 . 2 . . . . Network Status 3 | . . . . . . . . . . . 1 . . 1 . 1 . . . . Load Schematic 4 | . . . . . . . . . . . 1 . . 2 . 1 . . . . Build 2 | . . . . . . . . . . . . . . 2 . . . . . . Repair Station Hacks 16 | . 2 . 9 . . . 3 . . . . . . 2 . . . . . . Scan Component 9 | . 1 . 5 . . . 2 . . . . . . 1 . . . . . . Repair 7 | . 1 . 4 . . . 1 . . . . . . 1 . . . . . . Recycling Unit Hacks . | . . . . . . . . . . . . . . . . . . . . . Scanalyzer 8 | . . . 4 . . . . . 4 . . . . . . . . . . . Insert Component 3 | . . . 2 . . . . . 1 . . . . . . . . . . . Analyze 5 | . . . 2 . . . . . 3 . . . . . . . . . . . Garrison Access Hacks 3 | . . . . . . . 1 . 1 . . . . . . 1 . . . . Unlock Access 2 | . . . . . . . 1 . 1 . . . . . . . . . . . Seal Access 1 | . . . . . . . . . . . . . . . . 1 . . . . Unauthorized Hacks 39 | . 9 . 9 . . . 11 . . . . . . 9 . 1 . . . . Terminals 37 | . 9 . 9 . . . 11 . . . . . . 8 . . . . . . Botnet 8 | . 2 . 2 . . . 2 . . . . . . 2 . . . . . . Operators 4 | . 2 . . . . . 1 . . . . . . 1 . . . . . . Skim 25 | . 5 . 7 . . . 8 . . . . . . 5 . . . . . . Fabricators 2 | . . . . . . . . . . . . . . 1 . 1 . . . . Download 1 | . . . . . . . . . . . . . . 1 . . . . . . Recompile 1 | . . . . . . . . . . . . . . . . 1 . . . . Repair Stations . | . . . . . . . . . . . . . . . . . . . . . Recycling Units . | . . . . . . . . . . . . . . . . . . . . . Scanalyzers . | . . . . . . . . . . . . . . . . . . . . . Garrison Access . | . . . . . . . . . . . . . . . . . . . . . Data Cores Recovered 2 | . . . 1 . . . . . . . . . . 1 . . . . . . Used . | . . . . . . . . . . . . . . . . . . . . . Hacking Detections 48 | . 5 . 14 . . . 9 2 . 2 1 . . 12 . 2 1 . . . Full Trace Events 6 | . . . . . . . 1 . . 1 1 . . 2 . 1 . . . . Feedback Events . | . . . . . . . . . . . . . . . . . . . . . Feedback Blocked . | . . . . . . . . . . . . . . . . . . . . . Robot Schematics Acquired 5 | . . . 1 . . . . . . . . . . . . . . . 4 . Robots Built . | . . . . . . . . . . . . . . . . . . . . . Authchips . | . . . . . . . . . . . . . . . . . . . . . Time . | . . . . . . . . . . . . . . . . . . . . . Total Robot Build Rating . | . . . . . . . . . . . . . . . . . . . . . Part Schematics Acquired 13 | . 1 . 1 . . . . . 1 . . . . 1 . . . . 9 . Parts Built 3 | . . . . . . . . . . . . . . 3 . . . . . . Authchips . | . . . . . . . . . . . . . . . . . . . . . Time 168 | . . . . . . . . . . . . . . 168 . . . . . . Total Part Build Rating 15 | . . . . . . . . . . . . . . 15 . . . . . . Parts Repaired 7 | . 1 . 4 . . . 1 . . . . . . 1 . . . . . . Time 242 | . 13 . 141 . . . 32 . . . . . . 56 . . . . . . Parts Recycled . | . . . . . . . . . . . . . . . . . . . . . Recycled Matter . | . . . . . . . . . . . . . . . . . . . . . Retrieved Matter . | . . . . . . . . . . . . . . . . . . . . . Retrieved Components . | . . . . . . . . . . . . . . . . . . . . . Parts Scanalyzed 2 | . . . 1 . . . . . 1 . . . . . . . . . . . Part Schematics Acquired 2 | . . . 1 . . . . . 1 . . . . . . . . . . . Parts Damaged . | . . . . . . . . . . . . . . . . . . . . . Bothacking | -11 -10 -10 -9 -9 -9 -8 -8 -8 -8 -8 -7 -7 -7 -6 -6 -6 -6 -6 -6 -5 ------------ Run | Yrd Mat Min Mat Min Exi Min Mat Gar Mat Gar Fac Low Low Fac Was Fac Low Low Dat Pro Used RIF Installer 3 | . . . . . . . . 1 . 2 . . . . . . . . . . Signal Jammer 1 | . . . . . . . . . . 1 . . . . . . . . . . Program Shield 1 | . . . . . . . . . . 1 . . . . . . . . . . Robots Hacked 7 | . . . . . 4 . . . . . 1 . . 1 . . . . 1 . Non-combat 5 | . . . . . 3 . . . . . 1 . . 1 . . . . . . Combat 2 | . . . . . 1 . . . . . . . . . . . . . 1 . Robot Hacks Applied 7 | . . . . . 4 . . . . . 1 . . 1 . . . . 1 . parse_system 5 | . . . . . 4 . . . . . . . . . . . . . 1 . find_chute 2 | . . . . . . . . . . . 1 . . 1 . . . . . . Relay Couplers Released 33 | . . . . . . . . 11 . 19 . . . 3 . . . . . . Machine Destruction 27 | . . . . . . . . 11 . 16 . . . . . . . . . . Programmers 6 | . . . . . . . . . . 3 . . . 3 . . . . . . Fabnet Peak Effective % . | . . . . . . . . . . . . . . . . . . . . . Robots Rewired 7 | . . . . . . . . . . 7 . . . . . . . . . . Allies Hacked . | . . . . . . . . . . . . . . . . . . . . . Hacks Repelled . | . . . . . . . . . . . . . . . . . . . . . Allies | -11 -10 -10 -9 -9 -9 -8 -8 -8 -8 -8 -7 -7 -7 -6 -6 -6 -6 -6 -6 -5 -------- Run | Yrd Mat Min Mat Min Exi Min Mat Gar Mat Gar Fac Low Low Fac Was Fac Low Low Dat Pro Total Allies 32 | . . . . 3 . . . . . 9 . . . . 20 . . . . . Largest Group 20 | . . . . 3 1 . . . . 4 . . . . 20 17 6 . . . Highest-Rated Group 791 | . . . . 40 16 . . . . 63 . . . . 791 641 211 . . . Highest-Rated Ally 50 | . . . . 16 16 . . . . 31 . . . . 50 46 46 . . . Total Orders 1 | . . . . . . . . . . 1 . . . . . . . . . . STAY 1 | . . . . . . . . . . 1 . . . . . . . . . . Ally Attacks 209 | . . . . 18 . . . . . 53 . . . . 4 114 20 . . . Total Damage 4427 | . . . . 235 . . . . . 981 . . . . 255 2390 566 . . . Kills 33 | . . . . 2 . . . . . 10 . . . . . 18 3 . . . Allies Corrupted 1 | . . . . . . . . . . . . . . . . 1 . . . . Allies Melted . | . . . . . . . . . . . . . . . . . . . . . Intel | -11 -10 -10 -9 -9 -9 -8 -8 -8 -8 -8 -7 -7 -7 -6 -6 -6 -6 -6 -6 -5 ------- Run | Yrd Mat Min Mat Min Exi Min Mat Gar Mat Gar Fac Low Low Fac Was Fac Low Low Dat Pro Robot Analysis Total 146 | . . . 1 . . . . . . . . . . . . . . . 145 . Derelict Logs Recovered 7 | . . 2 . 1 . . . . . . . . 1 . . . 1 1 . 1 Drone Launches . | . . . . . . . . . . . . . . . . . . . . . Drone Recoveries . | . . . . . . . . . . . . . . . . . . . . . Exploration | -11 -10 -10 -9 -9 -9 -8 -8 -8 -8 -8 -7 -7 -7 -6 -6 -6 -6 -6 -6 -5 ------------- Run | Yrd Mat Min Mat Min Exi Min Mat Gar Mat Gar Fac Low Low Fac Was Fac Low Low Dat Pro Turns Passed 26799 | 134 1636 2390 3400 1340 1316 1031 2816 1582 197 1890 539 1400 188 2869 570 571 645 947 343 995 Spaces Moved 10412 | 49 769 714 1277 614 540 464 1007 569 79 663 172 554 78 1025 257 256 313 425 150 437 Core 43 | 7 . . . . . . . . . . . . . . . . . . . 36 Treads 2047 | 42 451 . 4 . . . 741 328 . 447 33 . . . 1 . . . . . Legs . | . . . . . . . . . . . . . . . . . . . . . Wheels 8322 | . 318 714 1273 614 540 464 266 241 79 216 139 554 78 1025 256 256 313 425 150 401 Hover . | . . . . . . . . . . . . . . . . . . . . . Flight . | . . . . . . . . . . . . . . . . . . . . . Fastest Speed 50 | 50 160 175 175 210 210 210 210 210 225 225 225 225 240 126 147 190 190 190 190 50 Average Speed 206 | 144 166 175 203 210 210 210 234 236 225 235 238 239 240 202 184 190 190 190 190 178 Slowest Speed 560 | 160 240 175 560 210 210 210 240 250 225 241 243 240 240 255 400 190 190 190 190 190 Overloaded Moves . | . . . . . . . . . . . . . . . . . . . . . Propulsion Burnouts . | . . . . . . . . . . . . . . . . . . . . . Robots Hopped . | . . . . . . . . . . . . . . . . . . . . . Cave-ins Triggered . | . . . . . . . . . . . . . . . . . . . . . Exploration Rate (%) 63 | 3 98 98 98 100 70 99 85 77 12 83 8 81 12 36 86 12 66 66 82 68 Regions Visited 20 Branch Regions 10 Pre-discovered Areas 34 | . . 1 1 . . . 1 . . . . . . 1 . . 1 . 28 1 Known Exits Taken 7 | . . . 1 . . 1 1 . 1 . . 1 1 . . 1 . . . . Unknown Exits Taken 9 | 1 1 1 . 1 1 . . . . . 1 . . . . . 1 1 1 . Scrap Searched 11 | . . 2 . 3 . 1 . . . . . 1 . . . . 3 1 . . Spaces Dug 122 | . . 22 3 18 . . 5 10 1 3 4 2 . 41 . 6 . 1 . 6 Terrain Destroyed 304 | . 12 42 28 30 . 15 11 10 6 7 8 4 . 56 . 33 2 6 12 22 Melee 69 | . . . 3 . . . 5 10 1 3 4 . . 33 . 6 . 1 . 3 Projectile 59 | . . 5 . . . . 6 . 5 4 4 . . 21 . 2 2 5 . 5 AOE 174 | . 12 37 25 30 . 15 . . . . . 4 . . . 25 . . 12 14 Terrain Rammed 2 | . . . . . . . . 2 . . . . . . . . . . . . Walls Destroyed . | . . . . . . . . . . . . . . . . . . . . . Machines Disabled 2 | . . . . . . . . 2 . . . . . . . . . . . . Actions | -11 -10 -10 -9 -9 -9 -8 -8 -8 -8 -8 -7 -7 -7 -6 -6 -6 -6 -6 -6 -5 --------- Run | Yrd Mat Min Mat Min Exi Min Mat Gar Mat Gar Fac Low Low Fac Was Fac Low Low Dat Pro Total 14081 | 79 972 1794 1786 658 644 502 1268 721 98 847 242 605 79 1529 337 313 339 515 194 559 Wait 1983 | . 80 1030 250 23 21 18 85 11 9 26 8 24 1 255 21 28 7 42 11 33 Move 10394 | 48 768 713 1276 613 539 463 1007 568 78 662 171 553 77 1025 256 255 312 424 149 437 Hop . | . . . . . . . . . . . . . . . . . . . . . Pick Up 145 | 6 7 3 26 4 14 1 14 11 2 7 5 2 . 23 7 2 . 3 5 3 Fast Attach 40 | 7 2 . 3 . . . 5 . . 1 1 1 . 7 7 1 2 1 1 1 Attach 64 | . 3 1 5 . 7 2 5 3 . 6 2 1 . 9 5 3 . 2 5 5 Detach 24 | . 1 . . . . . 4 1 . 1 . . . 1 4 2 1 2 2 5 Swap 295 | . 19 16 41 8 6 9 38 14 4 24 18 9 1 45 3 4 5 13 6 12 Drop 142 | 1 3 . 23 5 13 . 19 11 3 3 6 4 . 19 19 1 1 2 3 6 Fire 684 | 17 86 31 143 5 40 9 76 27 . 55 16 8 . 66 5 8 7 25 11 49 Melee 224 | . . . 18 . 4 . 15 20 2 41 14 3 . 79 10 9 4 1 1 3 Ram 7 | . 1 . . . . . . 2 . . . . . . . . . . . 4 Kick . | . . . . . . . . . . . . . . . . . . . . . Crush 4 | . 2 . 1 . . . . . . . 1 . . . . . . . . . Escape Stasis 74 | . . . . . . . . 53 . 21 . . . . . . . . . . Rewire 1 | . . . . . . . . . . . . . . . . . . . . 1 Trap . | . . . . . . . . . . . . . . . . . . . . . Miscellaneous . | . . . . . . . . . . . . . . . . . . . . . Route ------- -11/Scrapyard -10/Materials (discovered 6 exits: *Mat x3 / [*Min x2] / [*Sub]) -10/Mines (discovered 2 exits: *Mat x2) -9/Materials (discovered 4 exits: *Mat x3 / *Min) -9/Mines (discovered 4 exits: *Mat x2 / *Exi / *Zio) -9/Exiles -8/Mines (discovered 2 exits: *Mat x2) -8/Materials (discovered 4 exits: *Fac x3 / Gar) -8/Garrison (discovered 3 exits: *Mat x3) -8/Materials -8/Garrison (discovered 3 exits: *Fac x3) -7/Factory (discovered 5 exits: *Fac x2 / Sto x2 / *Low) -7/Lower Caves -7/Lower Caves (discovered 2 exits: *Fac / Zio) -6/Factory (discovered 3 exits: [*Fac x2] / *Ext) -6/Waste -6/Factory -6/Lower Caves -6/Lower Caves (discovered 2 exits: [*Fac] / *Dat) -6/Data Miner -5/Proximity Caves History --------- Turn | Location | Event 8 | -11/Scrapyard | Discovered new exit (range 15) 135 | -11/Scrapyard | Entered Materials 135 | -10/Materials | Discovered new exit (range 8) 287 | -10/Materials | Central database locked down 318 | -10/Materials | Build established: Mutant 594 | -10/Materials | Discovered new exit (range 8) 772 | -10/Materials | Discovered new exit (range 16) 957 | -10/Materials | Discovered new exit (range 8) 1056 | -10/Materials | Core integrity fell below 50% 1315 | -10/Materials | Discovered new exit (range 10) 1353 | -10/Materials | Repaired Lgt. Treads 1571 | -10/Materials | Discovered new exit (range 9) 1771 | -10/Materials | Entered Mines 1799 | -10/Mines | Discovered new exit (range 6) 1824 | -10/Mines | Learned location of Zion (-7) 1829 | -10/Mines | Discovered new exit (range 5) 1848 | -10/Mines | Found DCF Scrap (15 items) 2103 | -10/Mines | Assembled infested the area 2108 | -10/Mines | Assisted by a Guerilla fighting off Assembled 3726 | -10/Mines | Learned 4 Materials zone layouts 4161 | -10/Mines | Entered Materials 4161 | -9/Materials | Evolved 2 slots: Utility x2 4162 | -9/Materials | Identified exit to Materials 4668 | -9/Materials | Discovered exit to Materials (range 13) 4898 | -9/Materials | Learned 4 Recycling zone layouts 4942 | -9/Materials | Learned Storage interactive machine intel 5004 | -9/Materials | Identified exit to Mines 6529 | -9/Materials | Build established: Scavenger-Mutant 6932 | -9/Materials | Build established: Mutant 7320 | -9/Materials | Repaired Hrd. Light Armor Plating 7353 | -9/Materials | Repaired Med. Armor Plating 7380 | -9/Materials | Repaired Lgt. Armor Plating 7432 | -9/Materials | Repaired Imp. Assault Rifle 7561 | -9/Materials | Entered Mines 7756 | -9/Mines | Deemed a non-threat by the Exiles lab entrance 7756 | -9/Mines | Discovered new exit (range 5) 7832 | -9/Mines | Discovered exit to Materials (range 5) 8294 | -9/Mines | Assisted by bots powering up and referring to "LRC-V3" 8307 | -9/Mines | A Derelict revealed a hidden shortcut to a safe place 8901 | -9/Mines | Entered Exiles 8901 | -9/Exiles | Accompanied by 1 ally 8954 | -9/Exiles | Met 8R-AWN 8991 | -9/Exiles | Met EX-HEX 9056 | -9/Exiles | Met EX-BIN 9120 | -9/Exiles | Met EX-DEC 9330 | -9/Exiles | Discovered new exit (range 12) 9751 | -9/Exiles | Aligned with FarCom system 9753 | -9/Exiles | Given EX-Vault access code 9801 | -9/Exiles | Opened EX-Vault 9814 | -9/Exiles | Found AWS/Thermal 9821 | -9/Exiles | Found 0b10 Alert Chip 9830 | -9/Exiles | Found XL Autogun Array 9871 | -9/Exiles | Warned to stay clear of 0b10 Research branches 9890 | -9/Exiles | Exiles lab attacked by MAIN.C 10052 | -9/Exiles | Attacked by the Exiles 10089 | -9/Exiles | Core integrity fell below 50% 10176 | -9/Exiles | Destroyed 8R-AWN 10187 | -9/Exiles | Lost 5 parts (1p1n1u2w) 10190 | -9/Exiles | Found 8R-AWN's Boregun 10217 | -9/Exiles | Stole three prototypes: 0b10 Alert Chip, AWS/Thermal, XL Autogun Array 10217 | -9/Exiles | Entered Mines 10240 | -8/Mines | Discovered exit to Materials (range 8) 10519 | -8/Mines | Discovered exit to Materials (range 9) 10918 | -8/Mines | Core integrity fell below 20% 11248 | -8/Mines | Entered Materials 11248 | -8/Materials | Evolved 2 slots: Propulsion x1, Weapon x1 11943 | -8/Materials | Build established: Scavenger-Gunner 12662 | -8/Materials | Learned 4 Factory zone layouts 12673 | -8/Materials | Discovered new exit (range 8) 12737 | -8/Materials | Learned Storage emergency access door positions 12800 | -8/Materials | Identified exit to Factory 12895 | -8/Materials | Learned 4 Lower Caves zone layouts 12927 | -8/Materials | Learned location of 1 exit from Recycling 12947 | -8/Materials | Learned 4 Lower Caves zone layouts 12975 | -8/Materials | Learned location of 2 exits from Lower Caves 13015 | -8/Materials | Learned location of Extension (-6) 13067 | -8/Materials | Learned Factory trap positions 13130 | -8/Materials | Learned location of 2 exits from Factory 13633 | -8/Materials | Repaired Hrd. Light Armor Plating 14041 | -8/Materials | Build established: Gunner 14064 | -8/Materials | Identified exit to Garrison 14064 | -8/Materials | Entered Garrison 14132 | -8/Garrison | Triggered checkpoint 14224 | -8/Garrison | Garrison Relay disabled 14353 | -8/Garrison | Triggered checkpoint 14362 | -8/Garrison | Triggered checkpoint 14644 | -8/Garrison | Discovered new exit (range 11) 14690 | -8/Garrison | Build established: Scavenger-Gunner 14695 | -8/Garrison | Triggered checkpoint 14749 | -8/Garrison | Garrison Relay disabled 15128 | -8/Garrison | Installed Relay Interface Framework 15158 | -8/Garrison | Discovered new exit (range 6) 15202 | -8/Garrison | Triggered checkpoint 15307 | -8/Garrison | Garrison Relay disabled 15436 | -8/Garrison | Triggered checkpoint 15590 | -8/Garrison | Discovered new exit (range 13) 15646 | -8/Garrison | Entered Materials 15833 | -8/Materials | Identified exit to Garrison 15843 | -8/Materials | Entered Garrison 15893 | -8/Garrison | Triggered checkpoint 15930 | -8/Garrison | Garrison Relay disabled 15989 | -8/Garrison | Expanded RIF knowledge: Program Shield 16112 | -8/Garrison | Rescued a captive Derelict 16114 | -8/Garrison | Rescued a captive Derelict 16126 | -8/Garrison | Build established: Tank 16197 | -8/Garrison | Triggered checkpoint 16203 | -8/Garrison | Triggered checkpoint 16240 | -8/Garrison | Destroyed 7 combat bots 16280 | -8/Garrison | AWS/Thermal suddenly broke down 16406 | -8/Garrison | Triggered checkpoint 16475 | -8/Garrison | Lost 3 allies 16503 | -8/Garrison | System corruption reached 10% 16518 | -8/Garrison | Core integrity fell below 50% 16543 | -8/Garrison | Destroyed 8 combat bots 16546 | -8/Garrison | Lost 3 parts (1n2u) 16561 | -8/Garrison | Discovered exit to Factory (range 10) 16708 | -8/Garrison | Garrison Relay disabled 16792 | -8/Garrison | Expanded RIF knowledge: Signal Jamming 16924 | -8/Garrison | Triggered checkpoint 17024 | -8/Garrison | Discovered exit to Factory (range 8) 17031 | -8/Garrison | Triggered checkpoint 17099 | -8/Garrison | Triggered checkpoint 17152 | -8/Garrison | Garrison Relay disabled 17411 | -8/Garrison | Discovered exit to Factory (range 10) 17546 | -8/Garrison | Garrison Relay disabled 17733 | -8/Garrison | Entered Factory 17733 | -7/Factory | Evolved 2 slots: Propulsion x1, Utility x1 17734 | -7/Factory | Identified exit to Storage 17735 | -7/Factory | Identified exit to Factory 17737 | -7/Factory | Loaded intel: 101 trap records 18133 | -7/Factory | First assault squad dispatched 18155 | -7/Factory | Discovered new exit (range 9) 18193 | -7/Factory | Build established: Scavenger-Mutant 18272 | -7/Factory | Entered Lower Caves 18273 | -7/Lower Caves | Identified exit to Lower Caves 19672 | -7/Lower Caves | Entered another Lower Caves area 19673 | -7/Lower Caves | Identified exit to Zion 19836 | -7/Lower Caves | Discovered exit to Factory (range 4) 19860 | -7/Lower Caves | Entered Factory 19860 | -6/Factory | Evolved 2 slots: Utility x2 19861 | -6/Factory | Identified exit to Extension 20406 | -6/Factory | Garrison activated, responded to threat 20487 | -6/Factory | Repaired KE Penetrator 21208 | -6/Factory | Discovered new exit (range 9) 21208 | -6/Factory | Spotted B-75 Beast 21273 | -6/Factory | Destroyed B-75 Beast 21291 | -6/Factory | Lost 3 parts (1n2u) 21348 | -6/Factory | Found Powered Armor 21351 | -6/Factory | Found Powered Armor 21355 | -6/Factory | Found Powered Armor 22028 | -6/Factory | Fabricated Cargo Storage Unit (x1) 22051 | -6/Factory | Discovered new exit (range 5) 22370 | -6/Factory | Fabricated Centrium Wheel? 22549 | -6/Factory | Learned location of 1 exit from Cetus 22619 | -6/Factory | Learned location of 1 exit from Cetus 22681 | -6/Factory | Learned location of Hub_04(d) (-6) 22729 | -6/Factory | Sucked down chute 22729 | -6/Factory | Entered Waste 22730 | -6/Waste | Joined by Warlord forces that had cleared the area 22789 | -6/Waste | A Compactor rumbled back to life 22789 | -6/Waste | Spotted C-40 Crusher 22790 | -6/Waste | Destroyed C-40 Crusher 22832 | -6/Waste | Found Damper Plating 22858 | -6/Waste | Discovered new exit (range 13) 22927 | -6/Waste | Murdered 3 allies 22972 | -6/Waste | Build established: Hauler-Mutant 23299 | -6/Waste | Entered Factory 23299 | -6/Factory | Accompanied by 17 allies 23300 | -6/Factory | Identified exit to Lower Caves 23587 | -6/Factory | Lost 5 allies 23870 | -6/Factory | Entered Lower Caves 23870 | -6/Lower Caves | Accompanied by 6 allies 23925 | -6/Lower Caves | Lost 5 allies 24487 | -6/Lower Caves | Discovered new exit (range 15) 24515 | -6/Lower Caves | Entered another Lower Caves area 24649 | -6/Lower Caves | Discovered new exit (range 9) 24652 | -6/Lower Caves | Attracted the attention of an 0b10 checkpoint 24855 | -6/Lower Caves | Build established: Hauler-Tank 25035 | -6/Lower Caves | Discovered new exit (range 2) 25180 | -6/Lower Caves | Attracted the attention of an 0b10 base 25252 | -6/Lower Caves | Learned Extension emergency access door positions 25252 | -6/Lower Caves | Learned Extension trap positions 25462 | -6/Lower Caves | Entered Data Miner 25462 | -6/Data Miner | Discovered new exit (range 6) 25490 | -6/Data Miner | Met Data Miner 25536 | -6/Data Miner | Learned location of Section 7 (-2) 25536 | -6/Data Miner | Acquired the access code to Warlord's prototype stash 25564 | -6/Data Miner | Received God Mode back door access code from Data Miner 25600 | -6/Data Miner | Destroyed Data Miner 25603 | -6/Data Miner | Interfaced with the Data Conduit 25647 | -6/Data Miner | Found Quantum Router 25652 | -6/Data Miner | Found Deep Network Scanner 25662 | -6/Data Miner | Lost 3 parts (2u1w) 25805 | -6/Data Miner | Entered Proximity Caves 26311 | -5/Proximity Caves | Unaware initiated a cargo recovery operation 26474 | -5/Proximity Caves | Attracted the attention of an 0b10 checkpoint 26531 | -5/Proximity Caves | Spotted B-75 Beast 26561 | -5/Proximity Caves | Destroyed B-75 Beast 26774 | -5/Proximity Caves | Core integrity fell below 50% 26777 | -5/Proximity Caves | Attracted the attention of an 0b10 outpost 26782 | -5/Proximity Caves | Core integrity fell below 20% 26800 | -5/Proximity Caves | Destroyed by G-50 Soldier with Heavy Laser Last Messages --------------- 26778_ Acquired Deep Network Scanner. 26778_ Centrium Wheel destroyed. 26779_ Hvy. Treads destroyed. 26779_ Penetrated by Slug. 26779_ Slug penetrates Wall. 26780_ Dropped Greatsword. 26781_ Y-72 Warden: "REQUESTING BACKUP." 26781_ Acquired Seismic Detector. 26781_ S-27 Virus destroyed. 26782_ Acquired 5 matter. 26783_ System corrupted: Matter fused (-8). 26783_ Acquired 8 matter. 26799_ C-30 ARC bursts open, deploying its payload. 26799_ G-67 Veteran unfolds itself. 26799_ L-41 Fighter unfolds itself. 26799_ G-50 Soldier unfolds itself. 26799_ I-47 Archangel unfolds itself. 26799_ Slammed into L-41 Fighter. 26799_ Destabilizing: Core damaged (-17). Map ----- +----------------------------------------------------+ | ?????????????????????????????????????????????????? | | ?????????????????????????????????????????????????? | | ????????????????##???????????????????????????????? | | ???????????????## ???????????????????????????????? | | ??????????????## ???????????????????????????????? | | ?????????????## #??????????????????????????????? | | ?????????????# #??????????????????????????????? | | ?????????????# ###????????????????????????????? | | ??? %???????? ?????###?????????????????????? | | ??% ????????? ???## #?????????????????????? | | ?? % ?????????# #??## #?????????????????????? | | ?? ??????### #### #??????????????????????? | | ?? #?????# #???????????????????????? | | ???# ###?## #???????????????????????? | | ????# ## ### #???????????????????????? | | ?????# % ###?# #???????????????????????? | | ??????# !%% ##???# #???????????????????????? | | ??????#### #????# #???????????????????????? | | ?????????## #????# #???????????????????????? | | ??????????# ##????# #???????????????????????? | | ?####?????# ##?????# #???????????????????????? | | ? #?????# ###??##??# #???????????????????????? | | ## #?????## #??# #??# #???????????????????????? | | # ######## ## #??# #???????????????????????? | | # ## #?##l##??????????????????????? | | #??# ## ## #?#gg@#??????????????????????? | | #???# ## ##???# g #??????????????????????? | | # /%#??## ### # ??????????????????????? | | #]!*#### ?????????????????????? | | ##!!]% ####### ###????????????????????? | | !||/%! % % ## #?????####??????????????????????? | | ####"%## = ##?###???????????????????????????????? | | ???# #### ##????????????????????????????????????? | | ???###??####?????????????????????????????????????? | | ?????????????????????????????????????????????????? | | ?????????????????????????????????????????????????? | | ?????????????????????????????????????????????????? | | ?????????????????????????????????????????????????? | | ?????????????????????????????????????????????????? | | ?????????????????????????????????????????????????? | | ?????????????????????????????????????????????????? | | ?????????????????????????????????????????????????? | | ?????????????????????????????????????????????????? | | ?????????????????????????????????????????????????? | | ?????????????????????????????????????????????????? | | ?????????????????????????????????????????????????? | | ?????????????????????????????????????????????????? | | ?????????????????????????????????????????????????? | | ?????????????????????????????????????????????????? | | | +----------------------------------------------------+ Best States ------------- Heat Dissipation 63 Energy Generation 18 Energy Capacity 290 Matter Stores 300 Matter Capacity 300 Sight Range 22 Robot Scan Range 16 Terrain Scan Range 16 Terrain Scan Density 10 Jamming Range 14 Armor Coverage 1600 Resistance: EM 90 Weapon Cycling 15 Evasion (%) 50 Targeting Accuracy 8 Recoil Reduction 4 Authchip Count 1 Item Schematics ----------------- Cargo Storage Unit | -10/Materials | Hacked Arm. Wheel | -9/Materials | Scanalyzed Exp. Heat Sink | -8/Materials | Scanalyzed Centrium Wheel | -6/Factory | Downloaded Combat Drone Bay | -6/Data Miner | Free Lgt. Regenerative Plating | -6/Data Miner | Free Enh. Armored Leg | -6/Data Miner | Free Prc. Matter Filter | -6/Data Miner | Free Thunder Hammer | -6/Data Miner | Free Imp. Antigrav System | -6/Data Miner | Free Adv. Particle Charger | -6/Data Miner | Free Hardcell Cannon | -6/Data Miner | Free Adv. Thermal Shield | -6/Data Miner | Free Robot Schematics ------------------ M-13 Machinist | -9/Materials | Hacked E-15 Imp | -6/Data Miner | Free R-10 Processor | -6/Data Miner | Free B-48 Gladiator | -6/Data Miner | Free L-61 Swordsman | -6/Data Miner | Free Fabricated ------------ Cargo Storage Unit | x1 | -6/Factory Centrium Wheel | x2 | -6/Factory Alien Tech Used ----------------- None Achievements -------------- None Challenges ------------ None Game ------ Seed TrapLargeDatajack Manual? 0 Play Time 03:35:30 Cumulative 506.4 hours Start 2024.09.14 @ 11:31:44 End 2024.09.21 @ 21:37:56 Sessions 15 Manual Loads 0 Difficulty Rogue Special Mode None Game No. 232 Rogue 232 Adventurer 0 Explorer 0 Win Type - Total 12 Types 9/0/1/1/0/0/0/1/0 Lore% 71 Gallery% 89 Achievement% 72 Wizard Run 0 Options --------- Layout 2 ASCII 0 Keyboard 1 Movement Vi Keybinds 0 Fullscreen 2 Font 32/SmallcapsGlow Map View 50x44 Zoom Use 0% Tactical HUD 1 Map Filters NONE Filters NONE Steam 0 RUN: 28ee9379-2810-448a-b6dd-458486e5523e